[Event "*** SCC Grand Prix: Titled Tuesday Blitz"]
[Site "Chess.com"]
[Date "2020.09.29"]
[Round "7"]
[White "Sven_Tica"]
[Black "Gajuchess"]
[Result "0-1"]
[WhiteElo "2658"]
[BlackElo "2815"]
[TimeControl "180+1"]
[EndTime "11:13:21 PDT"]
[Termination "Gajuchess won by resignation"]

1. d4 {[%clk 0:03:00.9]} 1... Nf6 {[%clk 0:02:59]} 2. c4 {[%clk 0:03:01.4]} 2...
e6 {[%clk 0:02:59.1]} 3. g3 {[%clk 0:03:01.3]} 3... Bb4+ {[%clk 0:02:59.1]} 4.
Bd2 {[%clk 0:03:01.1]} 4... Be7 {[%clk 0:02:59.4]} 5. Bg2 {[%clk 0:03:01.4]}
5... O-O {[%clk 0:03:00.1]} 6. Nf3 {[%clk 0:03:01.8]} 6... d5 {[%clk 0:03:01]}
7. O-O {[%clk 0:03:02.3]} 7... Nbd7 {[%clk 0:03:01.6]} 8. Qc2 {[%clk 0:03:02.6]}
8... c6 {[%clk 0:03:01.9]} 9. Bf4 {[%clk 0:03:03.2]} 9... h6 {[%clk 0:03:00.8]}
10. Nc3 {[%clk 0:03:00.5]} 10... dxc4 {[%clk 0:03:00.4]} 11. Nd2 {[%clk
0:03:00.7]} 11... Nd5 {[%clk 0:02:59.7]} 12. Nxc4 {[%clk 0:03:00.3]} 12... Nxf4
{[%clk 0:02:59.9]} 13. gxf4 {[%clk 0:03:01.2]} 13... Nb6 {[%clk 0:02:58.4]} 14.
Nxb6 {[%clk 0:02:51.3]} 14... axb6 {[%clk 0:02:59.3]} 15. Rfd1 {[%clk
0:02:51.3]} 15... Qc7 {[%clk 0:02:52.1]} 16. e3 {[%clk 0:02:50.2]} 16... Bd7
{[%clk 0:02:52.3]} 17. Rac1 {[%clk 0:02:44.8]} 17... Kh8 {[%clk 0:02:47.2]} 18.
a3 {[%clk 0:02:43.6]} 18... Rg8 {[%clk 0:02:40.6]} 19. Qe4 {[%clk 0:02:42.1]}
19... f5 {[%clk 0:02:36.1]} 20. Qf3 {[%clk 0:02:18.2]} 20... g5 {[%clk
0:02:36.2]} 21. Qh5 {[%clk 0:02:18]} 21... Kh7 {[%clk 0:02:36.5]} 22. d5 {[%clk
0:02:12.2]} 22... Be8 {[%clk 0:02:23]} 23. Qf3 {[%clk 0:02:09]} 23... gxf4
{[%clk 0:01:47.7]} 24. d6 {[%clk 0:02:05.2]} 24... Bxd6 {[%clk 0:01:42.9]} 25.
Nb5 {[%clk 0:02:05.3]} 25... Qg7 {[%clk 0:01:36.8]} 26. Nxd6 {[%clk 0:02:02.5]}
26... Bh5 {[%clk 0:01:36.9]} 27. Kh1 {[%clk 0:01:22.5]} 27... Bxf3 {[%clk
0:01:34.8]} 28. Bxf3 {[%clk 0:01:23.4]} 28... Rad8 {[%clk 0:01:35]} 29. exf4
{[%clk 0:01:17.8]} 29... Qc7 {[%clk 0:01:29.8]} 0-1

[Event "*** SCC Grand Prix: Titled Tuesday Blitz"]
[Site "Chess.com"]
[Date "2020.09.29"]
[Round "7"]
[White "picturesquecheck"]
[Black "Rubinstein_Akiba"]
[Result "0-1"]
[WhiteElo "2184"]
[BlackElo "2383"]
[TimeControl "180+1"]
[EndTime "11:13:21 PDT"]
[Termination "Rubinstein_Akiba won by resignation"]

1. e4 {[%clk 0:03:00.9]} 1... c5 {[%clk 0:02:58.1]} 2. Nf3 {[%clk 0:02:59]} 2...
d6 {[%clk 0:02:58.2]} 3. d4 {[%clk 0:02:57.2]} 3... cxd4 {[%clk 0:02:59.1]} 4.
Nxd4 {[%clk 0:02:57.7]} 4... Nf6 {[%clk 0:02:59.6]} 5. Nc3 {[%clk 0:02:57.2]}
5... a6 {[%clk 0:02:59.7]} 6. h3 {[%clk 0:02:55.8]} 6... e5 {[%clk 0:02:55.1]}
7. Nde2 {[%clk 0:02:50.5]} 7... Be6 {[%clk 0:02:51.9]} 8. g4 {[%clk 0:02:42]}
8... Be7 {[%clk 0:02:49.9]} 9. Bg2 {[%clk 0:02:40.8]} 9... Nc6 {[%clk
0:02:48.6]} 10. Be3 {[%clk 0:02:38]} 10... Qc7 {[%clk 0:02:37.5]} 11. Ng3 {[%clk
0:02:37.1]} 11... g6 {[%clk 0:02:28.7]} 12. Qe2 {[%clk 0:02:29.2]} 12... b5
{[%clk 0:02:25.9]} 13. f4 {[%clk 0:02:28]} 13... exf4 {[%clk 0:02:09.7]} 14.
Bxf4 {[%clk 0:02:28.9]} 14... b4 {[%clk 0:02:10.1]} 15. Nd5 {[%clk 0:01:20.3]}
15... Bxd5 {[%clk 0:02:06.9]} 16. exd5 {[%clk 0:01:20]} 16... Nd4 {[%clk
0:02:07.5]} 17. Qd3 {[%clk 0:01:14.2]} 17... Nxc2+ {[%clk 0:02:00.4]} 18. Kf1
{[%clk 0:01:13]} 18... Nxa1 {[%clk 0:01:58.9]} 19. g5 {[%clk 0:01:06.8]} 19...
Nd7 {[%clk 0:01:53.3]} 20. Bf3 {[%clk 0:00:43.9]} 20... Rc8 {[%clk 0:01:47.3]}
21. Kg2 {[%clk 0:00:27.8]} 0-1

[Event "*** SCC Grand Prix: Titled Tuesday Blitz"]
[Site "Chess.com"]
[Date "2020.09.29"]
[Round "7"]
[White "ajkom197"]
[Black "hungrycaterpillar4"]
[Result "1-0"]
[WhiteElo "2469"]
[BlackElo "2610"]
[TimeControl "180+1"]
[EndTime "11:13:24 PDT"]
[Termination "ajkom197 won by resignation"]

1. c4 {[%clk 0:02:59.8]} 1... f5 {[%clk 0:02:56.9]} 2. g3 {[%clk 0:02:58.4]}
2... Nf6 {[%clk 0:02:57.3]} 3. Bg2 {[%clk 0:02:58.4]} 3... e6 {[%clk 0:02:57.8]}
4. Nc3 {[%clk 0:02:58.8]} 4... Be7 {[%clk 0:02:58.4]} 5. e3 {[%clk 0:02:58.6]}
5... O-O {[%clk 0:02:58.5]} 6. Nge2 {[%clk 0:02:57.9]} 6... d5 {[%clk
0:02:59.1]} 7. b3 {[%clk 0:02:57.3]} 7... c6 {[%clk 0:02:57.5]} 8. O-O {[%clk
0:02:57.1]} 8... Na6 {[%clk 0:02:50.8]} 9. Bb2 {[%clk 0:02:56.8]} 9... Nc5
{[%clk 0:02:48.7]} 10. d4 {[%clk 0:02:54.2]} 10... Nce4 {[%clk 0:02:49.1]} 11.
Qc2 {[%clk 0:02:53.4]} 11... Bd7 {[%clk 0:02:48.9]} 12. Rad1 {[%clk 0:02:52.6]}
12... Bd6 {[%clk 0:02:49]} 13. f3 {[%clk 0:02:48.7]} 13... Ng5 {[%clk
0:02:44.1]} 14. e4 {[%clk 0:02:38.1]} 14... fxe4 {[%clk 0:02:35.8]} 15. fxe4
{[%clk 0:02:39]} 15... Ngxe4 {[%clk 0:02:35.8]} 16. Nxe4 {[%clk 0:02:39]} 16...
dxe4 {[%clk 0:02:36.3]} 17. Bxe4 {[%clk 0:02:38.8]} 17... Nxe4 {[%clk 0:02:37]}
18. Qxe4 {[%clk 0:02:39.6]} 18... Qg5 {[%clk 0:02:34.6]} 19. Bc1 {[%clk
0:02:33.7]} 19... Qh5 {[%clk 0:02:14.4]} 20. Bf4 {[%clk 0:02:33]} 20... e5
{[%clk 0:01:49.7]} 21. Bxe5 {[%clk 0:02:23.8]} 21... Bf5 {[%clk 0:00:48.2]} 22.
Qe3 {[%clk 0:02:15.1]} 22... Bxe5 {[%clk 0:00:39]} 23. dxe5 {[%clk 0:02:14.3]}
23... Bh3 {[%clk 0:00:37.6]} 24. Nf4 {[%clk 0:02:10.1]} 24... Rxf4 {[%clk
0:00:26.9]} 25. Qxf4 {[%clk 0:02:05.9]} 25... Bxf1 {[%clk 0:00:26.2]} 26. Rxf1
{[%clk 0:02:06.8]} 26... Re8 {[%clk 0:00:26.5]} 27. e6 {[%clk 0:02:05.4]} 27...
h6 {[%clk 0:00:25.2]} 28. Qf7+ {[%clk 0:02:04.6]} 1-0

[Event "*** SCC Grand Prix: Titled Tuesday Blitz"]
[Site "Chess.com"]
[Date "2020.09.29"]
[Round "7"]
[White "TimKett"]
[Black "barbara25"]
[Result "1-0"]
[WhiteElo "2175"]
[BlackElo "2325"]
[TimeControl "180+1"]
[EndTime "11:13:27 PDT"]
[Termination "TimKett won by resignation"]

1. e4 {[%clk 0:03:00.9]} 1... c5 {[%clk 0:02:58]} 2. Nf3 {[%clk 0:02:59.9]} 2...
d6 {[%clk 0:02:57.3]} 3. d4 {[%clk 0:02:59.2]} 3... cxd4 {[%clk 0:02:56.8]} 4.
Nxd4 {[%clk 0:02:59.9]} 4... Nf6 {[%clk 0:02:57.3]} 5. Nc3 {[%clk 0:03:00.2]}
5... a6 {[%clk 0:02:57.6]} 6. Bg5 {[%clk 0:02:59.9]} 6... e6 {[%clk 0:02:57.3]}
7. f4 {[%clk 0:02:59]} 7... Be7 {[%clk 0:02:55.3]} 8. Qf3 {[%clk 0:02:58.9]}
8... Qc7 {[%clk 0:02:54.1]} 9. O-O-O {[%clk 0:02:58.5]} 9... Nc6 {[%clk
0:02:51.9]} 10. Nxc6 {[%clk 0:02:47.1]} 10... bxc6 {[%clk 0:02:51.6]} 11. Qg3
{[%clk 0:02:46.5]} 11... O-O {[%clk 0:02:41.3]} 12. e5 {[%clk 0:02:44.3]} 12...
dxe5 {[%clk 0:02:40.4]} 13. fxe5 {[%clk 0:02:43.2]} 13... Nd5 {[%clk 0:02:40.3]}
14. Ne4 {[%clk 0:02:35.5]} 14... Bxg5+ {[%clk 0:02:39.1]} 15. Qxg5 {[%clk
0:02:31.5]} 15... a5 {[%clk 0:02:35.8]} 16. c4 {[%clk 0:02:13.4]} 16... Nb4
{[%clk 0:02:34.2]} 17. Nf6+ {[%clk 0:02:10.1]} 17... Kh8 {[%clk 0:02:31.6]} 18.
Rd4 {[%clk 0:02:05.3]} 18... Nxa2+ {[%clk 0:02:13.5]} 19. Kb1 {[%clk 0:02:01.8]}
19... Nc3+ {[%clk 0:02:11.7]} 20. Kc2 {[%clk 0:01:22.4]} 20... Qb6 {[%clk
0:01:45.5]} 21. Rh4 {[%clk 0:01:15.9]} 21... Qf2+ {[%clk 0:01:44.4]} 22. Kxc3
{[%clk 0:01:11.9]} 22... Qe1+ {[%clk 0:01:42.3]} 23. Kc2 {[%clk 0:01:07]} 23...
Qf2+ {[%clk 0:01:29.7]} 24. Kb1 {[%clk 0:00:56]} 24... Qe1+ {[%clk 0:01:28.6]}
25. Ka2 {[%clk 0:00:53.3]} 1-0

[Event "*** SCC Grand Prix: Titled Tuesday Blitz"]
[Site "Chess.com"]
[Date "2020.09.29"]
[Round "7"]
[White "GianmarcoVaR"]
[Black "brunomorado"]
[Result "1-0"]
[WhiteElo "2543"]
[BlackElo "2383"]
[TimeControl "180+1"]
[EndTime "11:13:29 PDT"]
[Termination "GianmarcoVaR won by resignation"]

1. d4 {[%clk 0:02:53]} 1... d5 {[%clk 0:03:00.2]} 2. c4 {[%clk 0:02:50.6]} 2...
c6 {[%clk 0:03:00.5]} 3. Nf3 {[%clk 0:02:49.9]} 3... Nf6 {[%clk 0:03:00.6]} 4.
Qc2 {[%clk 0:02:41.5]} 4... e6 {[%clk 0:02:58.1]} 5. g3 {[%clk 0:02:40.3]} 5...
Nbd7 {[%clk 0:02:54.3]} 6. Bg2 {[%clk 0:02:40.3]} 6... Bd6 {[%clk 0:02:54.6]} 7.
O-O {[%clk 0:02:35.7]} 7... Qe7 {[%clk 0:02:52.2]} 8. Nbd2 {[%clk 0:02:28.2]}
8... e5 {[%clk 0:02:49]} 9. cxd5 {[%clk 0:02:24.6]} 9... Nxd5 {[%clk 0:02:43.1]}
10. Nc4 {[%clk 0:02:20.3]} 10... exd4 {[%clk 0:02:15.7]} 11. Nxd6+ {[%clk
0:02:10.3]} 11... Qxd6 {[%clk 0:02:16.6]} 12. Qe4+ {[%clk 0:02:09.2]} 12... Qe7
{[%clk 0:02:11.1]} 13. Qxe7+ {[%clk 0:01:56.6]} 13... Nxe7 {[%clk 0:02:12]} 14.
Nxd4 {[%clk 0:01:57]} 14... Nc5 {[%clk 0:02:03.8]} 15. b3 {[%clk 0:01:50.5]}
15... O-O {[%clk 0:02:00.9]} 16. Ba3 {[%clk 0:01:50]} 16... b6 {[%clk
0:01:52.6]} 17. Rac1 {[%clk 0:01:49.7]} 17... Nf5 {[%clk 0:01:36.5]} 18. Bxc5
{[%clk 0:01:40.3]} 18... bxc5 {[%clk 0:01:32.3]} 19. Nxf5 {[%clk 0:01:40.3]}
19... Bxf5 {[%clk 0:01:31.7]} 20. Rxc5 {[%clk 0:01:40.9]} 20... Bd7 {[%clk
0:01:23.6]} 21. Bxc6 {[%clk 0:01:40.8]} 21... Rac8 {[%clk 0:01:22.2]} 22. Rfc1
{[%clk 0:01:40.1]} 22... Bg4 {[%clk 0:01:09.3]} 23. f3 {[%clk 0:01:40]} 23...
Be6 {[%clk 0:01:07.8]} 24. Bd5 {[%clk 0:01:36.7]} 24... Rxc5 {[%clk 0:00:58.2]}
25. Rxc5 {[%clk 0:01:37.6]} 25... Rd8 {[%clk 0:00:55.2]} 26. Bxe6 {[%clk
0:01:37]} 26... fxe6 {[%clk 0:00:56.1]} 27. Kf2 {[%clk 0:01:33.6]} 27... Rd2
{[%clk 0:00:55.5]} 28. Rc8+ {[%clk 0:01:33.4]} 28... Kf7 {[%clk 0:00:55.5]} 29.
Rc7+ {[%clk 0:01:34.3]} 29... Kf6 {[%clk 0:00:55.7]} 30. Rxa7 {[%clk 0:01:35.2]}
1-0

[Event "*** SCC Grand Prix: Titled Tuesday Blitz"]
[Site "Chess.com"]
[Date "2020.09.29"]
[Round "7"]
[White "SHIVACalypso"]
[Black "Zarinur"]
[Result "1-0"]
[WhiteElo "2345"]
[BlackElo "2190"]
[TimeControl "180+1"]
[EndTime "11:13:51 PDT"]
[Termination "SHIVACalypso won by resignation"]

1. Nf3 {[%clk 0:03:00.9]} 1... Nf6 {[%clk 0:02:58.1]} 2. c4 {[%clk 0:03:00.7]}
2... e6 {[%clk 0:02:56.2]} 3. g3 {[%clk 0:02:59.1]} 3... d5 {[%clk 0:02:55.2]}
4. Bg2 {[%clk 0:02:55.2]} 4... c6 {[%clk 0:02:54.6]} 5. O-O {[%clk 0:02:55.7]}
5... Be7 {[%clk 0:02:53.6]} 6. d4 {[%clk 0:02:55.8]} 6... O-O {[%clk 0:02:51.1]}
7. Nc3 {[%clk 0:02:56.2]} 7... Nbd7 {[%clk 0:02:36.2]} 8. Nd2 {[%clk 0:02:54.1]}
8... b6 {[%clk 0:02:29.5]} 9. e4 {[%clk 0:02:53.6]} 9... dxe4 {[%clk 0:02:24.3]}
10. Ndxe4 {[%clk 0:02:54.5]} 10... Bb7 {[%clk 0:02:16.4]} 11. h3 {[%clk
0:02:50.2]} 11... Qc8 {[%clk 0:02:05]} 12. Bf4 {[%clk 0:02:45.6]} 12... c5
{[%clk 0:01:58.6]} 13. d5 {[%clk 0:02:42]} 13... exd5 {[%clk 0:01:53.8]} 14.
cxd5 {[%clk 0:02:40]} 14... Rd8 {[%clk 0:01:53.1]} 15. d6 {[%clk 0:02:24.8]}
15... Bf8 {[%clk 0:01:50.4]} 16. Bg5 {[%clk 0:02:25.2]} 16... Nxe4 {[%clk
0:01:43.9]} 17. Nxe4 {[%clk 0:02:19.9]} 17... f6 {[%clk 0:01:38.6]} 18. Bf4
{[%clk 0:02:14.9]} 18... Ne5 {[%clk 0:01:35]} 19. Bxe5 {[%clk 0:02:05.9]} 19...
fxe5 {[%clk 0:01:33.8]} 20. Qh5 {[%clk 0:02:06]} 20... Bxd6 {[%clk 0:01:26.4]}
21. Ng5 {[%clk 0:02:04.2]} 21... h6 {[%clk 0:01:22.7]} 22. Qf7+ {[%clk 0:02:02]}
22... Kh8 {[%clk 0:01:20.9]} 23. Bxb7 {[%clk 0:02:00.9]} 23... Qb8 {[%clk
0:01:13.7]} 24. Ne6 {[%clk 0:01:57]} 24... Rg8 {[%clk 0:00:59.5]} 25. Be4 {[%clk
0:01:46.7]} 25... Qe8 {[%clk 0:00:50.3]} 26. Qf5 {[%clk 0:01:45.9]} 26... g6
{[%clk 0:00:47.4]} 27. Qf6+ {[%clk 0:01:45.3]} 27... Kh7 {[%clk 0:00:46.7]} 28.
Bxa8 {[%clk 0:01:33.2]} 28... Qxa8 {[%clk 0:00:46.4]} 29. Rad1 {[%clk
0:01:29.2]} 1-0

[Event "*** SCC Grand Prix: Titled Tuesday Blitz"]
[Site "Chess.com"]
[Date "2020.09.29"]
[Round "7"]
[White "Koksik_13"]
[Black "elohunter1999"]
[Result "0-1"]
[WhiteElo "2648"]
[BlackElo "2495"]
[TimeControl "180+1"]
[EndTime "11:14:05 PDT"]
[Termination "elohunter1999 won by checkmate"]

1. d4 {[%clk 0:03:00.5]} 1... Nf6 {[%clk 0:02:58.3]} 2. Nc3 {[%clk 0:03:00.5]}
2... d5 {[%clk 0:02:54.1]} 3. Bf4 {[%clk 0:03:00.7]} 3... c5 {[%clk 0:02:53.5]}
4. e3 {[%clk 0:03:00.8]} 4... cxd4 {[%clk 0:02:53.8]} 5. exd4 {[%clk 0:03:00.9]}
5... a6 {[%clk 0:02:54.7]} 6. Nf3 {[%clk 0:03:00.9]} 6... Nc6 {[%clk 0:02:54.3]}
7. Ne5 {[%clk 0:03:01.1]} 7... Bd7 {[%clk 0:02:54]} 8. Nxc6 {[%clk 0:02:59.1]}
8... Bxc6 {[%clk 0:02:52.5]} 9. Bd3 {[%clk 0:03:00]} 9... e6 {[%clk 0:02:51.2]}
10. O-O {[%clk 0:02:59.9]} 10... Be7 {[%clk 0:02:41.4]} 11. Ne2 {[%clk
0:02:59.7]} 11... O-O {[%clk 0:02:40]} 12. Ng3 {[%clk 0:02:52.2]} 12... b5
{[%clk 0:02:35.1]} 13. Re1 {[%clk 0:02:48.9]} 13... b4 {[%clk 0:02:34]} 14. Be5
{[%clk 0:02:44.6]} 14... Bb5 {[%clk 0:02:31.6]} 15. Bxb5 {[%clk 0:02:40.2]}
15... axb5 {[%clk 0:02:32.5]} 16. Qd3 {[%clk 0:02:40.5]} 16... Qb6 {[%clk
0:02:26.5]} 17. f4 {[%clk 0:02:39.9]} 17... g6 {[%clk 0:02:24.7]} 18. f5 {[%clk
0:02:34.4]} 18... exf5 {[%clk 0:02:19.3]} 19. Nxf5 {[%clk 0:02:16.7]} 19... gxf5
{[%clk 0:02:19.2]} 20. Qxf5 {[%clk 0:02:17.4]} 20... Ne4 {[%clk 0:02:12.7]} 21.
Re3 {[%clk 0:01:58.2]} 21... f6 {[%clk 0:01:44.3]} 22. Bf4 {[%clk 0:01:28.2]}
22... Qxd4 {[%clk 0:01:41.8]} 23. Qg4+ {[%clk 0:01:28.5]} 23... Kh8 {[%clk
0:01:40.3]} 24. Rd1 {[%clk 0:01:29]} 24... Qc5 {[%clk 0:01:33.9]} 25. Qh5 {[%clk
0:01:25]} 25... Rad8 {[%clk 0:01:28.3]} 26. Kh1 {[%clk 0:01:25]} 26... Nf2+
{[%clk 0:01:25.8]} 27. Kg1 {[%clk 0:01:10.8]} 27... Nxd1 {[%clk 0:01:26.7]} 28.
Qxd1 {[%clk 0:01:08.6]} 28... Bd6 {[%clk 0:01:15.5]} 29. Bh6 {[%clk 0:01:04.2]}
29... Rg8 {[%clk 0:01:14.9]} 30. Kh1 {[%clk 0:00:58.6]} 30... Rg6 {[%clk
0:01:13.6]} 31. Qh5 {[%clk 0:00:53.3]} 31... Qxc2 {[%clk 0:01:08]} 32. Re1
{[%clk 0:00:53.2]} 32... Qxg2# {[%clk 0:01:07.5]} 0-1

[Event "*** SCC Grand Prix: Titled Tuesday Blitz"]
[Site "Chess.com"]
[Date "2020.09.29"]
[Round "7"]
[White "horripile"]
[Black "dyziotomi99"]
[Result "1-0"]
[WhiteElo "2662"]
[BlackElo "2474"]
[TimeControl "180+1"]
[EndTime "11:14:07 PDT"]
[Termination "horripile won by checkmate"]

1. e4 {[%clk 0:03:00.9]} 1... c5 {[%clk 0:02:58.2]} 2. Nf3 {[%clk 0:03:00.5]}
2... Nc6 {[%clk 0:02:58.5]} 3. Bb5 {[%clk 0:03:00.4]} 3... g6 {[%clk 0:02:58.4]}
4. Bxc6 {[%clk 0:02:58.3]} 4... bxc6 {[%clk 0:02:58.3]} 5. O-O {[%clk
0:02:57.5]} 5... Bg7 {[%clk 0:02:58.7]} 6. Re1 {[%clk 0:02:53.2]} 6... Nf6
{[%clk 0:02:58.5]} 7. e5 {[%clk 0:02:49.8]} 7... Nd5 {[%clk 0:02:58.8]} 8. c4
{[%clk 0:02:49.9]} 8... Nc7 {[%clk 0:02:58.6]} 9. d4 {[%clk 0:02:49.4]} 9...
cxd4 {[%clk 0:02:59]} 10. Qxd4 {[%clk 0:02:49]} 10... Ne6 {[%clk 0:02:59.2]} 11.
Qh4 {[%clk 0:02:47.3]} 11... d6 {[%clk 0:02:59.7]} 12. Bh6 {[%clk 0:02:37.1]}
12... O-O {[%clk 0:02:22.5]} 13. Nc3 {[%clk 0:02:29.4]} 13... dxe5 {[%clk
0:02:05.4]} 14. Bxg7 {[%clk 0:02:25.4]} 14... Kxg7 {[%clk 0:02:00.1]} 15. Nxe5
{[%clk 0:02:23.5]} 15... Nd4 {[%clk 0:01:52.5]} 16. Rad1 {[%clk 0:02:19.6]}
16... c5 {[%clk 0:01:52.6]} 17. Nc6 {[%clk 0:02:13.3]} 17... Qb6 {[%clk
0:01:46.1]} 18. Nxd4 {[%clk 0:02:07.9]} 18... cxd4 {[%clk 0:01:46.4]} 19. Nd5
{[%clk 0:01:59.6]} 19... Qxb2 {[%clk 0:01:40.4]} 20. Rb1 {[%clk 0:01:37.5]}
20... Qa3 {[%clk 0:01:30.6]} 21. Qxd4+ {[%clk 0:01:35.7]} 21... Kh6 {[%clk
0:01:19]} 22. Re4 {[%clk 0:01:33.4]} 22... g5 {[%clk 0:01:13.8]} 23. h4 {[%clk
0:01:26.7]} 23... f6 {[%clk 0:01:02]} 24. hxg5+ {[%clk 0:01:19.5]} 24... fxg5
{[%clk 0:01:02.1]} 25. Rxe7 {[%clk 0:01:17.5]} 25... Bf5 {[%clk 0:00:56.8]} 26.
Rb3 {[%clk 0:01:09.2]} 26... Qc1+ {[%clk 0:00:55]} 27. Kh2 {[%clk 0:01:05.1]}
27... Bg6 {[%clk 0:00:43.8]} 28. Rh3+ {[%clk 0:01:04.4]} 28... Bh5 {[%clk
0:00:42.8]} 29. Qg7# {[%clk 0:01:02.1]} 1-0

[Event "*** SCC Grand Prix: Titled Tuesday Blitz"]
[Site "Chess.com"]
[Date "2020.09.29"]
[Round "7"]
[White "markberk"]
[Black "Gusarov91"]
[Result "1/2-1/2"]
[WhiteElo "2394"]
[BlackElo "2579"]
[TimeControl "180+1"]
[EndTime "11:14:09 PDT"]
[Termination "Game drawn by agreement"]

1. Nf3 {[%clk 0:03:00.9]} 1... c6 {[%clk 0:02:55.8]} 2. g3 {[%clk 0:03:00.1]}
2... d5 {[%clk 0:02:55.9]} 3. Bg2 {[%clk 0:02:59.9]} 3... Nf6 {[%clk 0:02:56.5]}
4. c4 {[%clk 0:02:58.9]} 4... a6 {[%clk 0:02:54.2]} 5. O-O {[%clk 0:02:57]} 5...
g6 {[%clk 0:02:49.3]} 6. cxd5 {[%clk 0:02:46.5]} 6... cxd5 {[%clk 0:02:48.6]} 7.
d4 {[%clk 0:02:46.5]} 7... Nc6 {[%clk 0:02:48.7]} 8. Nc3 {[%clk 0:02:46.6]} 8...
Bg7 {[%clk 0:02:48.3]} 9. Ne5 {[%clk 0:02:47]} 9... O-O {[%clk 0:02:46.8]} 10.
Nxc6 {[%clk 0:02:45.8]} 10... bxc6 {[%clk 0:02:46.7]} 11. Bf4 {[%clk 0:02:42.4]}
11... Nh5 {[%clk 0:02:45.7]} 12. Be3 {[%clk 0:02:40.7]} 12... e5 {[%clk
0:02:41.8]} 13. dxe5 {[%clk 0:02:38.9]} 13... Bxe5 {[%clk 0:02:41.9]} 14. Bd4
{[%clk 0:02:33.4]} 14... Re8 {[%clk 0:02:39.4]} 15. Rc1 {[%clk 0:02:29.5]} 15...
Bd7 {[%clk 0:02:35.1]} 16. Bxe5 {[%clk 0:02:25.4]} 16... Rxe5 {[%clk 0:02:34.7]}
17. e4 {[%clk 0:02:25.4]} 17... dxe4 {[%clk 0:02:24.8]} 18. Nxe4 {[%clk
0:02:19.6]} 18... Be8 {[%clk 0:02:23.4]} 19. Qd6 {[%clk 0:02:06.6]} 19... Qxd6
{[%clk 0:02:16.3]} 20. Nxd6 {[%clk 0:02:05.6]} 20... Re2 {[%clk 0:02:16.4]} 21.
Nxe8 {[%clk 0:01:53.2]} 21... Raxe8 {[%clk 0:02:16]} 22. Bxc6 {[%clk 0:01:52.2]}
22... Rb8 {[%clk 0:02:15.6]} 23. Bd5 {[%clk 0:01:45.2]} 23... Nf6 {[%clk
0:02:09]} 24. Bb3 {[%clk 0:01:41.4]} 24... Rxb2 {[%clk 0:02:08.4]} 25. Rc6
{[%clk 0:01:40.8]} 25... Ne4 {[%clk 0:02:06]} 26. Rxa6 {[%clk 0:01:33.1]} 26...
Nc5 {[%clk 0:02:06.1]} 27. Ra7 {[%clk 0:01:30.8]} 27... Nxb3 {[%clk 0:02:06.1]}
28. axb3 {[%clk 0:01:30]} 28... R8xb3 {[%clk 0:02:06.2]} 29. Kg2 {[%clk
0:01:27.7]} 29... Rb1 {[%clk 0:02:06.5]} 30. Rxb1 {[%clk 0:01:26.9]} 30... Rxb1
{[%clk 0:02:07.4]} 31. h4 {[%clk 0:01:26]} 31... Kg7 {[%clk 0:02:06.5]} 32. Rc7
{[%clk 0:01:25.4]} 32... Rb4 {[%clk 0:02:05.6]} 33. Rc6 {[%clk 0:01:24.9]} 33...
Rb7 {[%clk 0:02:04.5]} 34. Rd6 {[%clk 0:01:24.5]} 34... Re7 {[%clk 0:02:04.5]}
35. Ra6 {[%clk 0:01:24.3]} 35... h6 {[%clk 0:02:03.9]} 36. Rb6 {[%clk
0:01:24.1]} 36... g5 {[%clk 0:02:04.2]} 37. hxg5 {[%clk 0:01:23.3]} 37... hxg5
{[%clk 0:02:04.8]} 38. Ra6 {[%clk 0:01:21.4]} 38... f6 {[%clk 0:02:05.1]} 39.
Rb6 {[%clk 0:01:20.6]} 39... Kg6 {[%clk 0:02:05.6]} 40. g4 {[%clk 0:01:19.5]}
40... Ra7 {[%clk 0:02:04.6]} 41. Kg3 {[%clk 0:01:18.7]} 41... Ra3+ {[%clk
0:02:04.5]} 42. f3 {[%clk 0:01:18.6]} 42... Ra1 {[%clk 0:02:04.9]} 43. Rc6
{[%clk 0:01:18.5]} 43... Rg1+ {[%clk 0:02:04.6]} 44. Kf2 {[%clk 0:01:18.4]}
44... Rh1 {[%clk 0:02:04.9]} 45. Kg3 {[%clk 0:01:18.6]} 45... Rd1 {[%clk
0:02:04.7]} 46. Kf2 {[%clk 0:01:18.2]} 46... Ra1 {[%clk 0:02:04]} 47. Kg3 {[%clk
0:01:17.9]} 47... Ra7 {[%clk 0:02:03.3]} 48. Kg2 {[%clk 0:01:17.7]} 48... Re7
{[%clk 0:02:03.1]} 49. Kg3 {[%clk 0:01:17.7]} 49... Kf7 {[%clk 0:02:03.5]} 50.
Kg2 {[%clk 0:01:17.4]} 50... Re6 {[%clk 0:02:03.8]} 51. Rxe6 {[%clk 0:01:15.4]}
51... Kxe6 {[%clk 0:02:04.2]} 52. Kf2 {[%clk 0:01:12.4]} 52... Kd5 {[%clk
0:01:57.3]} 53. Ke3 {[%clk 0:01:09.8]} 53... Ke5 {[%clk 0:01:57.3]} 54. f4+
{[%clk 0:01:08.4]} 54... gxf4+ {[%clk 0:01:52.9]} 55. Kf3 {[%clk 0:01:08.4]}
55... Ke6 {[%clk 0:01:46.2]} 1/2-1/2

[Event "*** SCC Grand Prix: Titled Tuesday Blitz"]
[Site "Chess.com"]
[Date "2020.09.29"]
[Round "7"]
[White "PawnEatingZombie"]
[Black "teacher4chess"]
[Result "1-0"]
[WhiteElo "2203"]
[BlackElo "1997"]
[TimeControl "180+1"]
[EndTime "11:14:20 PDT"]
[Termination "PawnEatingZombie won by checkmate"]

1. d4 {[%clk 0:03:00.3]} 1... Nf6 {[%clk 0:02:58.8]} 2. c4 {[%clk 0:03:00]} 2...
e6 {[%clk 0:02:59.1]} 3. Nc3 {[%clk 0:03:00.3]} 3... d5 {[%clk 0:02:59]} 4. cxd5
{[%clk 0:02:59.8]} 4... exd5 {[%clk 0:02:59.2]} 5. Bg5 {[%clk 0:03:00.2]} 5...
Be7 {[%clk 0:02:58.6]} 6. e3 {[%clk 0:03:00.4]} 6... c6 {[%clk 0:02:57.2]} 7.
Bd3 {[%clk 0:03:00.1]} 7... Bg4 {[%clk 0:02:54.1]} 8. Qb3 {[%clk 0:02:59.1]}
8... Qb6 {[%clk 0:02:51.8]} 9. Qc2 {[%clk 0:02:58.7]} 9... Bh5 {[%clk
0:02:51.1]} 10. Nge2 {[%clk 0:02:57.1]} 10... Bg6 {[%clk 0:02:50.6]} 11. O-O
{[%clk 0:02:52.7]} 11... Bxd3 {[%clk 0:02:45.4]} 12. Qxd3 {[%clk 0:02:52.2]}
12... O-O {[%clk 0:02:43.7]} 13. f3 {[%clk 0:02:45.4]} 13... Nbd7 {[%clk
0:02:24.8]} 14. Kh1 {[%clk 0:02:44.3]} 14... Rad8 {[%clk 0:02:18]} 15. e4 {[%clk
0:02:30.9]} 15... dxe4 {[%clk 0:02:07.9]} 16. fxe4 {[%clk 0:02:30.6]} 16... Ne5
{[%clk 0:02:01.6]} 17. Qc2 {[%clk 0:02:02.5]} 17... Nc4 {[%clk 0:01:25.7]} 18.
b3 {[%clk 0:01:59.1]} 18... Na3 {[%clk 0:01:14.2]} 19. Qd3 {[%clk 0:01:46.6]}
19... Rfe8 {[%clk 0:01:10]} 20. e5 {[%clk 0:01:37]} 20... Nd5 {[%clk 0:01:09.4]}
21. Bxe7 {[%clk 0:01:36.6]} 21... Rxe7 {[%clk 0:00:57]} 22. Ne4 {[%clk
0:01:28.6]} 22... Nb4 {[%clk 0:00:45.6]} 23. Qg3 {[%clk 0:01:25]} 23... Nac2
{[%clk 0:00:40.3]} 24. Nf6+ {[%clk 0:01:08.3]} 24... Kf8 {[%clk 0:00:37.9]} 25.
Nxh7+ {[%clk 0:01:04.2]} 25... Ke8 {[%clk 0:00:38.1]} 26. Qxg7 {[%clk
0:00:55.1]} 26... Nxa1 {[%clk 0:00:37.8]} 27. Nf6# {[%clk 0:00:54.1]} 1-0